bitfinex-derivatives/quotes_SOLF0:USTF0_20250830
["timestamp","ask_amount","ask_price","bid_price","bid_amount"]
[1756584543255,3.12419116,200.7,200.64,7.53]
[1756584543850,0.03736894,200.69,200.64,7.53]
[1756584544454,5.19,200.68,200.64,7.53]
[1756584544955,5.19,200.68,200.58,3.12419116]
[1756584545155,5.19,200.68,200.59,7.53]
[1756584551553,0.03736894,200.69,200.59,7.53]
[1756584551759,5.2,200.68,200.59,7.53]
[1756584552057,0.03736894,200.69,200.59,7.53]
[1756584552257,5.2,200.68,200.59,7.53]
[1756584552859,0.03736894,200.69,200.62,7.44]
[1756584554358,0.03736894,200.69,200.6,3.12419116]
[1756584554557,0.03736894,200.69,200.56,7.44]
[1756584554558,3.12419116,200.64,200.56,7.44]
[1756584555364,0.03326384,200.62,200.56,7.44]
[1756584556862,0.03326384,200.62,200.57,7.44]
[1756584557163,0.03326384,200.62,200.59,3.12419116]
[1756584557366,0.03326384,200.62,200.6,7.44]
[1756584557563,5.24,200.75,200.6,7.44]
[1756584557764,3.12419116,200.72,200.61,7.44]
[1756584557965,3.12419116,200.72,200.62,7.44]
[1756584559276,5.24,200.71,200.62,7.44]
[1756584560375,5.24,200.71,200.62,11.60862071]
[1756584560873,5.24,200.71,200.63,7.44]
[1756584562370,5.24,200.71,200.63,11.60862071]
[1756584562773,5.23,200.75,200.64,7.44]
[1756584563078,3.12419116,200.74,200.65,7.44]
[1756584564378,3.12419116,200.74,200.65,11.60862071]
[1756584564581,5.23,200.73,200.65,7.44]
[1756584565377,5.23,200.73,200.65,11.60862071]
[1756584566973,3.12419116,200.8,200.66,7.44]
[1756584567179,3.12419116,200.77,200.68,7.44]
[1756584567379,29.41419116,200.79,200.69,4.16862071]
[1756584567574,5.23,200.78,200.7,7.44]
[1756584572086,334.9,200.85,200.71,11.60862071]
[1756584572275,8.35419116,200.81,200.72,7.44]
[1756584575087,5.23,200.81,200.72,7.44]
[1756584575288,3.12419116,200.8,200.72,7.44]
[1756584576892,3.12419116,200.8,200.73,7.44]
[1756584580500,5.23,200.76,200.69,11.74862071]
[1756584580701,5.23,200.76,200.69,7.58]
[1756584581200,5.23,200.73,200.66,7.58]
[1756584581501,23.28,200.77,200.63,4.16862071]
[1756584581502,5.23,200.7,200.63,4.16862071]
[1756584581896,5.23,200.7,200.62,11.74862071]
[1756584582299,23.28,200.77,200.62,11.74862071]
[1756584582300,8.35419116,200.68,200.62,11.74862071]
[1756584583502,8.35419116,200.68,200.62,7.58]
[1756584584703,8.35419116,200.68,200.58,11.74862071]
[1756584585401,5.23,200.67,200.58,11.74862071]
[1756584585701,5.23,200.67,200.59,7.58]
[1756584589699,3.12419116,200.65,200.59,7.58]
[1756584590405,5.23,200.67,200.59,7.58]
[1756584592005,8.35419116,200.67,200.59,7.58]
[1756584602914,5.23,200.66,200.59,7.58]
[1756584607818,3.12419116,200.68,200.59,7.58]
[1756584608914,5.23,200.69,200.59,7.58]
[1756584609115,3.12419116,200.71,200.6,7.91]
[1756584609320,8.35419116,200.71,200.6,7.91]
[1756584615127,5.23,200.71,200.6,4.16862071]
[1756584615327,5.23,200.71,200.62,7.91]
[1756584616329,5.23,200.71,200.62,3.12419116]
[1756584616629,5.23,200.71,200.63,7.91]
[1756584618127,5.23,200.69,200.61,4.16862071]
[1756584618326,3.12419116,200.7,200.6,7.91]
[1756584618630,5.23,200.69,200.6,7.91]
[1756584621230,3.12419116,200.7,200.6,12.07862071]
[1756584621429,3.12419116,200.7,200.6,7.91]
[1756584621935,5.2,200.69,200.6,7.91]
[1756584622132,3.12419116,200.7,200.6,7.91]
[1756584622332,5.2,200.69,200.6,7.91]
[1756584622732,3.12419116,200.7,200.6,7.91]
[1756584623435,5.2,200.69,200.6,7.91]
[1756584624335,5.2,200.69,200.6,4.16862071]
[1756584624535,5.2,200.69,200.61,7.91]
[1756584625234,3.12419116,200.7,200.61,7.91]
[1756584625235,5.2,200.66,200.61,7.91]
[1756584625641,3.12419116,200.67,200.61,7.91]
[1756584626331,5.2,200.66,200.61,7.91]
[1756584626536,3.12419116,200.67,200.61,7.91]
[1756584626736,5.2,200.66,200.61,7.91]
[1756584626940,3.12419116,200.67,200.61,7.91]
[1756584627242,5.2,200.66,200.61,7.91]
[1756584628141,5.2,200.66,200.6,12.07862071]
[1756584629338,5.2,200.66,200.6,7.91]
[1756584631243,3.12419116,200.64,200.6,7.91]
[1756584631442,5.2,200.63,200.59,7.91]
[1756584631840,3.12419116,200.64,200.59,7.91]
[1756584632043,5.2,200.63,200.59,7.91]
[1756584632242,5.2,200.69,200.57,4.16862071]
[1756584632447,5.2,200.6,200.57,7.91]
[1756584632647,3.12419116,200.61,200.55,4.16862071]
[1756584632947,8.32419116,200.61,200.55,4.16862071]
[1756584634147,5.2,200.61,200.55,4.16862071]
[1756584634346,3.12419116,200.6,200.54,7.91]
[1756584635046,5.2,200.59,200.54,7.91]
[1756584635242,3.12419116,200.6,200.54,7.91]
[1756584635440,5.2,200.59,200.54,7.91]
[1756584635647,3.12419116,200.6,200.54,7.91]
[1756584635946,5.2,200.59,200.54,7.91]
[1756584636553,3.12419116,200.6,200.54,7.91]
[1756584637446,5.21,200.59,200.54,7.91]
[1756584637641,5.21,200.59,200.51,12.09862071]
[1756584637948,3.12419116,200.57,200.51,7.93]
[1756584638140,8.33419116,200.57,200.5,7.93]
[1756584638848,3.12419116,200.54,200.5,7.93]
[1756584639152,5.27,200.53,200.49,7.93]
[1756584639352,8.39419116,200.54,200.48,7.93]
[1756584641152,3.12419116,200.51,200.48,7.93]
[1756584641352,8.39419116,200.51,200.48,7.93]
[1756584643445,8.39419116,200.51,200.43,7.93]
[1756584643446,5.27,200.51,200.43,7.93]
[1756584643855,3.12419116,200.5,200.43,7.93]
[1756584644754,5.27,200.51,200.43,7.93]
[1756584644955,3.12419116,200.5,200.43,7.93]
[1756584649161,335.02,200.64,200.43,3.12419116]
[1756584649355,3.12419116,200.55,200.44,7.93]
[1756584649859,3.12419116,200.55,200.46,3.12419116]
[1756584650059,3.12419116,200.55,200.47,7.93]
[1756584653755,5.27,200.56,200.47,7.93]
[1756584654060,3.12419116,200.58,200.47,7.93]
[1756584654754,8.39419116,200.59,200.48,3.12419116]
[1756584655060,8.39419116,200.59,200.49,7.93]
[1756584656362,5.27,200.58,200.49,7.93]
[1756584660363,3.12419116,200.7,200.54,3.12419116]
[1756584660669,8.39419116,200.65,200.55,7.93]
[1756584660864,3.12419116,200.65,200.55,7.93]
[1756584661467,5.27,200.58,200.5,7.93]
[1756584661863,3.12419116,200.59,200.5,7.93]
[1756584662163,5.27,200.58,200.5,7.93]
[1756584662960,3.12419116,200.59,200.5,7.93]
[1756584663160,5.27,200.58,200.5,7.93]
[1756584668466,3.12419116,200.62,200.5,7.93]
[1756584668668,8.33419116,200.62,200.53,7.42]
[1756584677771,5.21,200.62,200.53,7.42]
[1756584678972,5.21,200.62,200.53,11.58440467]
[1756584679178,5.21,200.62,200.54,7.42]
[1756584681179,3.12419116,200.59,200.53,4.16440467]
[1756584681476,3.12419116,200.59,200.5,7.42]
[1756584681677,5.24,200.58,200.5,7.42]
[1756584681883,5.24,200.55,200.47,4.16440467]
[1756584682276,5.24,200.55,200.46,11.58440467]
[1756584683379,5.24,200.55,200.47,7.42]
[1756584684279,5.24,200.55,200.47,11.58440467]
[1756584687278,5.24,200.55,200.47,7.42]
[1756584692379,5.24,200.55,200.48,7.42]
[1756584695382,3.12419116,200.53,200.48,7.42]
[1756584695682,5.24,200.52,200.45,11.58440467]
[1756584695883,3.12419116,200.53,200.45,7.42]
[1756584696182,5.24,200.52,200.45,7.42]
[1756584697382,5.25,200.49,200.43,4.16440467]
[1756584697581,5.25,200.49,200.42,11.58440467]
[1756584697973,5.25,200.49,200.43,7.42]
[1756584699883,5.25,200.5,200.42,4.16440467]
[1756584700087,5.25,200.5,200.41,4.16440467]
[1756584700581,5.25,200.5,200.42,7.42]
[1756584702278,3.12419116,200.54,200.43,7.42]
[1756584702481,5.25,200.53,200.43,7.42]
[1756584714192,3.12419116,200.54,200.43,7.42]
[1756584714391,5.25,200.53,200.43,7.42]
[1756584714592,3.12419116,200.54,200.43,7.42]
[1756584714887,5.25,200.53,200.43,7.42]
[1756584715692,3.12419116,200.54,200.43,7.42]
[1756584715988,5.25,200.5,200.43,7.42]
[1756584716793,3.12419116,200.51,200.43,7.42]
[1756584716990,5.25,200.5,200.43,7.42]
[1756584719395,5.25,200.5,200.39,4.16440467]
[1756584719595,3.12419116,200.51,200.4,7.42]
[1756584719795,5.25,200.5,200.4,7.42]
[1756584720094,3.12419116,200.51,200.4,7.42]
[1756584720293,5.25,200.5,200.4,7.42]
[1756584720499,5.25,200.47,200.4,7.42]
[1756584720706,5.25,200.47,200.37,7.28859583]
[1756584720707,3.12419116,200.45,200.37,7.42]
[1756584721395,5.25,200.44,200.37,7.42]
[1756584722102,8.37419116,200.44,200.33,7.42]
[1756584724000,5.25,200.4,200.31,7.42]
[1756584724203,5.25,200.37,200.31,7.42]
[1756584730703,3.12419116,200.4,200.31,7.42]
[1756584730902,8.69074199,200.5,200.31,3.12419116]
[1756584731106,3.12419116,200.43,200.32,7.85]
[1756584731509,3.12419116,200.43,200.33,7.85]
[1756584732104,3.12419116,200.46,200.35,3.12419116]
[1756584732407,3.12419116,200.46,200.36,7.85]
[1756584734809,5.25,200.45,200.36,7.85]
[1756584735211,8.37419116,200.45,200.36,7.85]
[1756584735911,5.25,200.51,200.38,3.12419116]
[1756584736110,3.12419116,200.5,200.39,7.85]
[1756584736707,5.25,200.49,200.39,7.85]
[1756584740518,5.24,200.46,200.39,7.85]
[1756584742618,25.30419116,200.47,200.39,7.85]
[1756584742821,5.24,200.46,200.39,7.85]
[1756584744316,25.30419116,200.47,200.33,7.85]
[1756584744523,5.24,200.46,200.33,7.85]
[1756584748529,3.12419116,200.45,200.33,7.85]
[1756584748732,5.24,200.44,200.33,7.85]
[1756584749228,5.24,200.44,200.34,100.0]
[1756584749425,5.24,200.44,200.35,7.85]
[1756584750130,3.12419116,200.45,200.35,7.85]
[1756584750332,5.24,200.44,200.35,7.85]
[1756584761540,3.12419116,200.45,200.35,7.85]
[1756584762239,5.25,200.41,200.35,7.85]
[1756584762637,5.25,200.41,200.34,100.0]
[1756584764038,5.25,200.41,200.34,107.65]
[1756584765843,5.25,200.41,200.35,7.65]
[1756584766042,22.18,200.47,200.35,7.65]
[1756584766043,8.37419116,200.45,200.35,7.65]
[1756584766849,3.12419116,200.42,200.35,7.65]
[1756584767153,5.25,200.41,200.35,7.65]
[1756584772461,8.37419116,200.44,200.35,7.65]
[1756584773463,8.37419116,200.44,200.35,4.16440467]
[1756584773659,8.37419116,200.44,200.36,7.65]
[1756584780266,5.25,200.49,200.38,3.12419116]
[1756584780467,5.25,200.49,200.4,7.65]
[1756584780672,340.49,200.52,200.42,7.65]
[1756584781966,5.25,200.51,200.42,7.65]
[1756584783367,335.24,200.52,200.43,7.65]
[1756584784072,335.24,200.52,200.45,7.65]
[1756584784672,3.12419116,200.53,200.45,7.65]
[1756584785575,5.25,200.52,200.45,7.65]
[1756584791078,3.12419116,200.55,200.45,7.65]
[1756584791477,5.24,200.54,200.45,7.65]
[1756584798388,5.24,200.54,200.47,7.75]
[1756584802893,24.91419116,200.57,200.47,7.75]
[1756584803082,21.79,200.57,200.49,3.12419116]
[1756584803287,5.23,200.56,200.5,7.75]
[1756584803483,5.23,200.56,200.38,8.38594254]
[1756584803484,5.23,200.56,200.46,7.75]
[1756584804194,19.68419116,200.57,200.46,7.75]
[1756584804390,5.23,200.56,200.46,7.75]
[1756584804591,19.68419116,200.57,200.46,7.75]
[1756584804797,5.23,200.56,200.46,7.75]
[1756584807991,3.12419116,200.54,200.46,7.75]
[1756584808396,5.23,200.53,200.46,7.75]
[1756584808994,3.12419116,200.54,200.46,7.75]
[1756584809190,5.23,200.53,200.46,7.75]
[1756584809892,3.12419116,200.54,200.46,7.75]
[1756584810499,5.23,200.53,200.46,7.75]
[1756584814598,40.49,200.57,200.47,7.75]
[1756584814797,43.61419116,200.57,200.47,7.75]
[1756584816098,3.12419116,200.54,200.47,7.75]
[1756584816301,5.23,200.53,200.47,7.75]
[1756584821002,3.12419116,200.54,200.42,7.32124631]
[1756584821197,35.26,200.57,200.43,7.61]
[1756584821198,5.24,200.5,200.43,7.61]
[1756584828601,5.24,200.54,200.45,4.19705515]
[1756584828806,5.24,200.54,200.46,7.61]
[1756584835411,5.24,200.54,200.46,11.80705515]
[1756584835616,5.24,200.54,200.48,7.61]
[1756584845325,7.24603499,200.54,200.48,7.61]
[1756584846425,2.00603499,200.56,200.49,2.00603499]
[1756584846721,2.00603499,200.56,200.5,7.61]
[1756584847421,29.48603499,200.58,200.52,8.09]
[1756584849131,27.48,200.58,200.52,8.09]
[1756584849723,5.24,200.6,200.52,8.09]
[1756584854730,3.13326796,200.58,200.49,8.09]
[1756584855332,5.24,200.57,200.49,8.09]
[1756584857232,3.13326796,200.58,200.49,8.09]
[1756584857436,5.24,200.57,200.49,8.09]
[1756584857737,3.13326796,200.58,200.49,8.09]
[1756584858028,5.24,200.57,200.49,8.09]
[1756584858231,3.13326796,200.58,200.49,8.09]
[1756584858436,5.24,200.57,200.49,8.09]
[1756584858637,3.13326796,200.58,200.49,8.09]
[1756584859036,5.24,200.57,200.49,8.09]
[1756584859236,3.13326796,200.58,200.49,8.09]
[1756584859436,5.24,200.57,200.49,8.09]
[1756584859634,3.13326796,200.58,200.49,8.09]
[1756584860042,5.24,200.57,200.49,8.09]
[1756584860237,3.13326796,200.58,200.49,8.09]
[1756584860738,5.24,200.57,200.49,8.09]
[1756584860940,3.13326796,200.58,200.49,8.09]
[1756584861138,5.24,200.57,200.49,8.09]
[1756584862638,3.13326796,200.58,200.49,8.09]
[1756584863844,5.24,200.57,200.49,8.09]
[1756584864143,3.13326796,200.58,200.49,8.09]
[1756584864339,5.24,200.57,200.49,8.09]
[1756584864946,3.13326796,200.58,200.49,8.09]
[1756584865145,5.24,200.57,200.49,8.09]
[1756584869450,2.00605931,200.54,200.48,2.00605931]
[1756584869948,2.00605931,200.54,200.49,8.09]
[1756584870150,2.00605931,200.54,200.48,2.00605931]
[1756584870345,2.00605931,200.54,200.49,8.09]
[1756584870541,2.00605931,200.54,200.48,2.00605931]
[1756584871050,2.00605931,200.54,200.49,8.09]
[1756584871943,2.00605931,200.54,200.48,2.00605931]
[1756584872448,2.00605931,200.54,200.49,8.09]
[1756584872849,2.00605931,200.56,200.51,8.09]
[1756584873045,7.24605931,200.54,200.51,8.09]
[1756584873244,7.24605931,200.54,200.49,8.09]
[1756584873457,7.24605931,200.54,200.48,2.00605931]
[1756584873948,7.24605931,200.54,200.49,8.09]
[1756584874149,7.24605931,200.54,200.48,2.00605931]
[1756584874754,7.24605931,200.54,200.49,8.09]
[1756584875454,5.24,200.54,200.48,2.00605931]
[1756584875653,5.24,200.62,200.53,8.09]
[1756584875856,5.24,200.62,200.55,8.09]
[1756584875857,7.24605931,200.62,200.55,8.09]
[1756584876652,2.00605931,200.6,200.54,2.00605931]
[1756584877351,2.00605931,200.6,200.55,7.42]
[1756584877548,2.00605931,200.6,200.54,2.00605931]
[1756584877955,2.00605931,200.6,200.55,7.42]
[1756584878457,2.00605931,200.6,200.54,2.00605931]
[1756584878659,2.00605931,200.6,200.54,9.42605931]
[1756584881461,18.06,200.66,200.5,9.42605931]
[1756584881462,5.24,200.57,200.5,9.42605931]
[1756584881858,2.00605931,200.56,200.5,9.42605931]
[1756584882562,2.00605931,200.56,200.5,7.42]
[1756584883256,8.37435198,200.57,200.5,7.42]
[1756584897664,5.56655083,200.62,200.5,7.42]
[1756584897865,3.13435198,200.6,200.5,7.42]
[1756584898369,3.13435198,200.6,200.51,7.42]
[1756584899066,5.24,200.61,200.51,7.42]
[1756584899366,3.13435198,200.59,200.51,7.42]
[1756584899760,5.24,200.58,200.51,7.42]
[1756584905275,2.00576956,200.55,200.49,4.19681273]
[1756584905470,2.00576956,200.55,200.5,7.42]
[1756584905672,2.00576956,200.55,200.49,4.19681273]
[1756584905873,2.00576956,200.55,200.5,7.42]
[1756584907476,2.00576956,200.55,200.49,4.19681273]
[1756584907674,2.00576956,200.55,200.5,7.36]
[1756584908171,2.00576956,200.55,200.49,4.19681273]
[1756584908379,2.00576956,200.51,200.49,7.36]
[1756584908968,2.00576956,200.51,200.46,7.36]
[1756584909272,3.13548854,200.52,200.46,7.36]
[1756584909466,3.13548854,200.52,200.45,4.19681273]
[1756584909677,3.13548854,200.52,200.46,7.36]
[1756584913686,8.36548854,200.52,200.45,7.36]
[1756584915287,5.23,200.51,200.45,7.36]
[1756584915591,3.13548854,200.49,200.45,7.36]
[1756584915887,5.23,200.48,200.45,7.36]
[1756584916079,5.23,200.48,200.42,7.36]
[1756584918889,5.23,200.45,200.42,7.36]
[1756584919485,5.23,200.45,200.39,7.36]
[1756584929395,2.00800677,200.43,200.39,7.36]
[1756584930200,2.00800677,200.43,200.38,7.36]
[1756584939206,5.25,200.51,200.42,8.0]
[1756584939407,2.00800677,200.48,200.42,2.00800677]
[1756584939613,2.00800677,200.48,200.43,8.0]
[1756584939913,2.00800677,200.48,200.42,2.00800677]
[1756584940109,2.00800677,200.48,200.43,8.0]
[1756584940508,2.00800677,200.46,200.41,8.0]
[1756584941818,2.00800677,200.46,200.42,2.00800677]
[1756584942111,7.25800677,200.44,200.38,2.00800677]
[1756584942317,2.00800677,200.44,200.38,2.00800677]
[1756584942518,2.00800677,200.44,200.39,8.0]
[1756584942915,2.00800677,200.44,200.38,2.00800677]
[1756584943114,2.00800677,200.44,200.39,8.0]
[1756584943425,2.00800677,200.44,200.38,2.00800677]
[1756584943715,2.00800677,200.44,200.39,8.0]
[1756584944320,2.00800677,200.44,200.38,2.00800677]
[1756584944621,2.00800677,200.44,200.39,8.0]
[1756584945320,2.00800677,200.44,200.38,2.00800677]
[1756584945621,2.00800677,200.44,200.39,8.0]
[1756584946023,5.25,200.46,200.39,8.0]
[1756584946320,2.00800677,200.45,200.4,2.00800677]
[1756584946514,2.00800677,200.45,200.41,8.0]
[1756584946912,7.25800677,200.45,200.4,2.00800677]
[1756584947114,7.25800677,200.45,200.41,8.0]
[1756584947823,5.25,200.44,200.41,8.0]
[1756584948620,2.00800677,200.45,200.41,8.0]
[1756584948821,2.00800677,200.45,200.4,2.00800677]
[1756584948822,2.00800677,200.48,200.43,8.0]
[1756584949520,2.00800677,200.48,200.42,2.00800677]
[1756584950423,5.25,200.5,200.43,8.0]
[1756584950622,5.25,200.5,200.44,2.00800677]
[1756584950825,7.25800677,200.5,200.44,2.00800677]
[1756584951025,7.25800677,200.5,200.45,8.0]
[1756584951424,5.25,200.5,200.45,8.0]
[1756584951625,7.25800677,200.5,200.44,2.00800677]
[1756584952024,5.25,200.5,200.45,8.0]
[1756584952319,7.25800677,200.5,200.45,8.0]
[1756584952617,7.25800677,200.5,200.44,2.00800677]
[1756584952823,5.25,200.5,200.44,2.00800677]
[1756584953124,7.25800677,200.5,200.45,8.0]
[1756584953326,7.25800677,200.5,200.44,2.00800677]
[1756584953522,7.25800677,200.5,200.45,8.0]
[1756584954319,7.25800677,200.5,200.44,2.00800677]
[1756584954518,7.25800677,200.5,200.45,8.0]
[1756584954722,7.25800677,200.54,200.48,10.00800677]
[1756584955622,2.00800677,200.56,200.51,8.0]
[1756584955926,5.25,200.56,200.5,2.00800677]
[1756584956126,5.25,200.56,200.51,8.0]
[1756584956324,5.25,200.57,200.51,8.0]
[1756584957626,2.00800677,200.58,200.52,2.00800677]
[1756584957826,7.25800677,200.54,200.48,2.00800677]
[1756584959423,5.25,200.54,200.47,8.0]
[1756584960529,5.25,200.56,200.47,8.0]
[1756584960727,3.13404534,200.57,200.47,8.0]
[1756584961130,5.25,200.56,200.47,8.0]
[1756584961628,5.25,200.53,200.47,8.0]
[1756584961821,3.13404534,200.54,200.44,8.0]
[1756584962524,5.25,200.53,200.44,8.0]
[1756584963529,3.13404534,200.54,200.44,8.0]
[1756584963931,5.25,200.53,200.44,8.0]
[1756584964530,3.13404534,200.54,200.44,8.0]
[1756584965334,3.13404534,200.51,200.44,8.0]
[1756584965632,3.13404534,200.51,200.42,3.13404534]
[1756584965633,3.13404534,200.48,200.41,8.0]
[1756584965825,5.25,200.47,200.41,8.0]
[1756584967734,3.13404534,200.48,200.38,7.91]
[1756584967942,3.13404534,200.45,200.38,7.91]
[1756584973746,3.13404534,200.42,200.38,7.91]
[1756584973943,3.13404534,200.42,200.34,100.0]
[1756584973944,5.25,200.41,200.34,107.91]
[1756584974144,5.25,200.38,200.34,107.91]
[1756584974342,5.25,200.38,200.35,7.91]
[1756584974844,3.13404534,200.39,200.34,100.0]
[1756584975544,5.25,200.38,200.34,100.0]
[1756584976246,3.13404534,200.39,200.34,107.91]
[1756584976747,5.25,200.38,200.34,107.91]
[1756584977151,5.25,200.38,200.35,7.91]
[1756584977152,8.38404534,200.38,200.35,7.91]
[1756584977449,5.25,200.37,200.34,100.0]
[1756584978552,3.13404534,200.38,200.34,100.0]
[1756584979851,5.25,200.37,200.34,100.0]
[1756584981253,3.13404534,200.38,200.35,7.91]
[1756584981453,5.22,200.37,200.34,107.91]
[1756584981953,3.13404534,200.38,200.34,107.91]
[1756584982154,5.22,200.37,200.34,107.91]
[1756584983357,3.13404534,200.38,200.34,107.91]
[1756584983548,3.13404534,200.35,200.34,107.91]
[1756584984453,8.35404534,200.35,200.34,100.0]
[1756584984851,3.13404534,200.35,200.34,100.0]
[1756584986060,3.13404534,200.35,200.34,107.91]
[1756584986556,3.13404534,200.38,200.35,7.91]
[1756584986859,8.35404534,200.38,200.35,7.91]
[1756584987561,5.22,200.38,200.35,7.91]
[1756584987762,3.13404534,200.36,200.34,107.91]
[1756584991058,3.13404534,200.36,200.35,7.91]
[1756585000969,7.37,200.35,200.24,99.21939053]
[1756585001174,7.37,200.35,200.18,7.32404301]
[1756585001175,3.13404534,200.31,200.18,7.32404301]
[1756585001474,3.13404534,200.31,200.18,3.13404534]
[1756585002369,7.37,200.35,200.18,3.13404534]
[1756585002673,3.13404534,200.33,200.21,3.13404534]
[1756585002966,3.13404534,200.33,200.19,4.18999767]
[1756585002967,3.13404534,200.33,200.24,3.13404534]
[1756585003373,3.13404534,200.33,200.25,7.94]
[1756585006676,3.13404534,200.35,200.25,7.94]
[1756585006873,3.13404534,200.38,200.28,7.94]
[1756585008264,3.13404534,200.4,200.28,7.94]
[1756585009682,10.50404534,200.4,200.28,7.94]
[1756585014183,10.50404534,200.4,200.29,7.94]
[1756585014387,10.50404534,200.4,200.3,7.94]
[1756585015285,10.50404534,200.4,200.31,7.94]
[1756585015785,10.50404534,200.43,200.32,7.94]
[1756585017186,10.50404534,200.43,200.32,12.12999767]
[1756585017387,10.50404534,200.43,200.33,7.94]
[1756585018386,10.50404534,200.43,200.34,7.94]
[1756585020586,7.37,200.43,200.34,7.94]
[1756585020790,7.37,200.46,200.35,12.12999767]
[1756585021092,3.13404534,200.47,200.38,7.94]
[1756585022587,3.13404534,200.47,200.39,7.94]
[1756585023191,7.37,200.49,200.39,7.94]
[1756585023394,3.13404534,200.5,200.41,7.94]
[1756585024293,7.37,200.52,200.41,7.94]
[1756585026288,30.41404534,200.56,200.44,7.94]
[1756585026493,37.78404534,200.56,200.44,7.94]
[1756585026682,10.50404534,200.56,200.44,7.94]
[1756585027488,10.50404534,200.56,200.46,3.13404534]
[1756585027993,10.50404534,200.56,200.47,7.77]
[1756585040199,7.37,200.56,200.47,7.77]
[1756585042801,10.50404534,200.56,200.47,7.77]
[1756585056212,7.37,200.56,200.48,3.13404534]
[1756585056517,7.37,200.56,200.49,7.77]
[1756585058013,456.94,200.6,200.49,7.77]
[1756585058219,7.73,200.59,200.49,7.77]
[1756585060918,7.73,200.57,200.49,7.77]
[1756585061115,7.73,200.54,200.46,7.95]
[1756585066326,7.73,200.54,200.46,12.11643962]
[1756585066526,7.73,200.54,200.46,4.16643962]
[1756585066727,7.73,200.54,200.47,7.95]
[1756585067325,7.73,200.54,200.47,12.11643962]
[1756585068729,7.73,200.54,200.47,7.95]
[1756585069126,7.73,200.54,200.47,12.11643962]
[1756585075932,3.13404534,200.55,200.47,12.11643962]
[1756585076132,7.73,200.54,200.47,12.11643962]
[1756585078229,3.13404534,200.55,200.47,12.11643962]
[1756585078435,7.73,200.54,200.47,12.11643962]
[1756585079435,7.73,200.54,200.46,4.16643962]
[1756585079734,7.73,200.51,200.44,4.16643962]
[1756585082534,7.73,200.51,200.43,12.11643962]
[1756585082735,3.13404534,200.52,200.43,12.11643962]
[1756585082930,7.73,200.48,200.42,103.74203484]
[1756585083332,3.13404534,200.49,200.42,99.57559522]
[1756585083534,7.73,200.48,200.42,99.57559522]
[1756585084737,7.73,200.48,200.4,12.11643962]
[1756585084929,3.13404534,200.49,200.4,12.11643962]
[1756585085132,7.73,200.48,200.4,12.11643962]
[1756585085431,7.73,200.48,200.4,7.95]
[1756585085630,3.13404534,200.46,200.4,7.95]
[1756585086736,7.73,200.45,200.4,7.95]
[1756585087139,3.13404534,200.46,200.36,12.11643962]
[1756585087436,3.13404534,200.43,200.36,7.95]
[1756585087634,7.79,200.42,200.36,7.95]
[1756585090138,7.79,200.42,200.32,7.55]
[1756585090439,3.13404534,200.4,200.32,7.55]
[1756585090640,7.79,200.39,200.32,7.55]
[1756585101146,3.13404534,200.37,200.32,7.55]
[1756585101446,3.13404534,200.37,200.28,7.55]